[Event "*** Titled Tuesday Blitz"]
[Site "Chess.com"]
[Date "2020.11.10"]
[Round "9"]
[White "ShcufNaiRolf"]
[Black "romulocardoso"]
[Result "1-0"]
[WhiteElo "2335"]
[BlackElo "2086"]
[TimeControl "180+1"]
[EndTime "11:52:14 PST"]
[Termination "ShcufNaiRolf won by resignation"]

1. e4 {[%clk 0:03:00.9]} 1... c5 {[%clk 0:02:59.5]} 2. Nf3 {[%clk 0:03:00.5]}
2... d6 {[%clk 0:03:00]} 3. d4 {[%clk 0:03:00.4]} 3... cxd4 {[%clk 0:03:00.9]}
4. Nxd4 {[%clk 0:03:01.3]} 4... Nf6 {[%clk 0:03:01.2]} 5. Nc3 {[%clk 0:03:01.7]}
5... g6 {[%clk 0:03:01.5]} 6. Be3 {[%clk 0:03:00.8]} 6... Bg7 {[%clk 0:03:01.9]}
7. f3 {[%clk 0:03:01.3]} 7... O-O {[%clk 0:03:02.1]} 8. Qd2 {[%clk 0:03:01.8]}
8... Nc6 {[%clk 0:03:02.5]} 9. Bc4 {[%clk 0:03:01.5]} 9... Be6 {[%clk
0:03:02.7]} 10. Nxe6 {[%clk 0:02:54.1]} 10... fxe6 {[%clk 0:03:01]} 11. Bxe6+
{[%clk 0:02:55]} 11... Kh8 {[%clk 0:03:01.6]} 12. O-O-O {[%clk 0:02:53.2]} 12...
Nd7 {[%clk 0:02:49.2]} 13. Bh6 {[%clk 0:02:43.4]} 13... Nc5 {[%clk 0:02:45.1]}
14. Bxg7+ {[%clk 0:02:29]} 14... Kxg7 {[%clk 0:02:46]} 15. Bd5 {[%clk
0:02:23.1]} 15... Qa5 {[%clk 0:02:31.3]} 16. h4 {[%clk 0:02:18]} 16... Nb4
{[%clk 0:02:17.5]} 17. h5 {[%clk 0:02:10.2]} 17... Rh8 {[%clk 0:01:58.7]} 18.
Qf4 {[%clk 0:01:45.9]} 18... e6 {[%clk 0:01:28.3]} 19. h6+ {[%clk 0:01:15.8]}
19... Kg8 {[%clk 0:01:24.3]} 20. Qf6 {[%clk 0:01:11]} 20... Qc7 {[%clk
0:01:08.1]} 21. Bxe6+ {[%clk 0:01:10.4]} 21... Nxe6 {[%clk 0:01:09]} 22. Qxe6+
{[%clk 0:01:09.4]} 22... Qf7 {[%clk 0:01:08.8]} 23. Qxd6 {[%clk 0:00:54.7]}
23... Nxa2+ {[%clk 0:01:02.2]} 24. Nxa2 {[%clk 0:00:55.1]} 24... Qxa2 {[%clk
0:01:03.1]} 25. b3 {[%clk 0:00:37.2]} 25... Qa1+ {[%clk 0:00:50.9]} 26. Kd2
{[%clk 0:00:37.1]} 26... Qa5+ {[%clk 0:00:46.5]} 27. Ke2 {[%clk 0:00:20.6]}
27... Qb5+ {[%clk 0:00:43.8]} 28. Rd3 {[%clk 0:00:16.5]} 28... Re8 {[%clk
0:00:39.3]} 29. Rd1 {[%clk 0:00:15.7]} 29... Qg5 {[%clk 0:00:30.4]} 30. Kf2
{[%clk 0:00:13.1]} 30... Qxh6 {[%clk 0:00:29.3]} 31. Qd5+ {[%clk 0:00:12.1]}
31... Kf8 {[%clk 0:00:28.8]} 32. Qxb7 {[%clk 0:00:12]} 32... Qh4+ {[%clk
0:00:27.5]} 33. Kg1 {[%clk 0:00:12.5]} 33... Re7 {[%clk 0:00:25.4]} 34. Rd8+
{[%clk 0:00:12.3]} 34... Kg7 {[%clk 0:00:25.6]} 35. Qa8 {[%clk 0:00:11.4]} 35...
Rxd8 {[%clk 0:00:19.7]} 36. Qxd8 {[%clk 0:00:12.3]} 36... Rxe4 {[%clk
0:00:19.5]} 37. fxe4 {[%clk 0:00:09.4]} 37... Qxe4 {[%clk 0:00:20.4]} 38. Qc7+
{[%clk 0:00:08.4]} 38... Kh6 {[%clk 0:00:21.3]} 39. Qh2+ {[%clk 0:00:08.5]}
39... Kg7 {[%clk 0:00:21.2]} 40. Qg3 {[%clk 0:00:08.5]} 40... Qxc2 {[%clk
0:00:19.1]} 41. Qd3 {[%clk 0:00:07.9]} 41... Kf6 {[%clk 0:00:20]} 42. Qxc2
{[%clk 0:00:07.8]} 1-0

[Event "*** Titled Tuesday Blitz"]
[Site "Chess.com"]
[Date "2020.11.10"]
[Round "9"]
[White "Jumbo"]
[Black "Promacherr"]
[Result "1-0"]
[WhiteElo "2870"]
[BlackElo "2722"]
[TimeControl "180+1"]
[EndTime "11:52:15 PST"]
[Termination "Jumbo won by checkmate"]

1. d4 {[%clk 0:03:00.9]} 1... d5 {[%clk 0:02:59.3]} 2. c4 {[%clk 0:02:57.7]}
2... e6 {[%clk 0:02:59.6]} 3. Nc3 {[%clk 0:02:55.9]} 3... c5 {[%clk 0:02:59.7]}
4. cxd5 {[%clk 0:02:43.9]} 4... exd5 {[%clk 0:03:00.6]} 5. Nf3 {[%clk
0:02:43.2]} 5... Nc6 {[%clk 0:03:00.6]} 6. e3 {[%clk 0:02:40.9]} 6... Nf6 {[%clk
0:02:51.4]} 7. Bb5 {[%clk 0:02:39.8]} 7... Bg4 {[%clk 0:02:50.3]} 8. Qa4 {[%clk
0:02:19]} 8... Bd7 {[%clk 0:02:40.7]} 9. Ne5 {[%clk 0:02:13.5]} 9... Rc8 {[%clk
0:02:27.4]} 10. Nxd7 {[%clk 0:02:07.3]} 10... Qxd7 {[%clk 0:02:28.3]} 11. dxc5
{[%clk 0:02:04.6]} 11... Bxc5 {[%clk 0:02:26.3]} 12. O-O {[%clk 0:02:04.3]}
12... O-O {[%clk 0:02:26.5]} 13. Rd1 {[%clk 0:02:04.1]} 13... a6 {[%clk
0:02:26.7]} 14. Bf1 {[%clk 0:01:57.6]} 14... Qf5 {[%clk 0:02:17.7]} 15. Qh4
{[%clk 0:01:28.5]} 15... Rcd8 {[%clk 0:02:05.7]} 16. Bd3 {[%clk 0:01:21.3]}
16... Qe5 {[%clk 0:02:01.8]} 17. Ne2 {[%clk 0:01:16.6]} 17... Ne4 {[%clk
0:01:40.5]} 18. Bd2 {[%clk 0:00:50]} 18... Qxb2 {[%clk 0:01:07.3]} 19. Bc3
{[%clk 0:00:35.4]} 19... Qb6 {[%clk 0:00:51.4]} 20. Rab1 {[%clk 0:00:31.8]}
20... Qc7 {[%clk 0:00:47.7]} 21. Bxe4 {[%clk 0:00:25.7]} 21... dxe4 {[%clk
0:00:38.7]} 22. Qg5 {[%clk 0:00:25.9]} 22... f5 {[%clk 0:00:32.4]} 23. Nf4
{[%clk 0:00:22.8]} 23... Qe7 {[%clk 0:00:20.5]} 24. Qxg7+ {[%clk 0:00:13.7]}
24... Qxg7 {[%clk 0:00:20.1]} 25. Bxg7 {[%clk 0:00:14.6]} 25... Kxg7 {[%clk
0:00:17.8]} 26. Ne6+ {[%clk 0:00:14.2]} 26... Kf6 {[%clk 0:00:18.2]} 27. Nxc5
{[%clk 0:00:13.8]} 27... Ne5 {[%clk 0:00:12.7]} 28. Nxb7 {[%clk 0:00:11.3]}
28... Rxd1+ {[%clk 0:00:12.6]} 29. Rxd1 {[%clk 0:00:11.5]} 29... Nd3 {[%clk
0:00:12.9]} 30. Rb1 {[%clk 0:00:04.1]} 30... Rc8 {[%clk 0:00:10.2]} 31. h3
{[%clk 0:00:02.9]} 31... Rc2 {[%clk 0:00:10.2]} 32. Rb6+ {[%clk 0:00:02.6]}
32... Kg5 {[%clk 0:00:07]} 33. Nd6 {[%clk 0:00:02.6]} 33... Rc1+ {[%clk
0:00:03.9]} 34. Kh2 {[%clk 0:00:02.1]} 34... Nxf2 {[%clk 0:00:04.8]} 35. Nf7+
{[%clk 0:00:02.1]} 35... Kh5 {[%clk 0:00:04.9]} 36. Rh6# {[%clk 0:00:02.1]} 1-0

[Event "*** Titled Tuesday Blitz"]
[Site "Chess.com"]
[Date "2020.11.10"]
[Round "9"]
[White "Xeniya2005"]
[Black "politeplayer"]
[Result "1-0"]
[WhiteElo "2378"]
[BlackElo "2246"]
[TimeControl "180+1"]
[EndTime "11:52:15 PST"]
[Termination "Xeniya2005 won by checkmate"]

1. e4 {[%clk 0:03:00.9]} 1... e6 {[%clk 0:02:56.5]} 2. d4 {[%clk 0:02:58.1]}
2... d5 {[%clk 0:02:55.4]} 3. Nd2 {[%clk 0:02:57.2]} 3... dxe4 {[%clk
0:02:55.5]} 4. Nxe4 {[%clk 0:02:56.3]} 4... Nd7 {[%clk 0:02:56.1]} 5. Nf3 {[%clk
0:02:53.7]} 5... Ngf6 {[%clk 0:02:56.1]} 6. Nxf6+ {[%clk 0:02:51.1]} 6... Nxf6
{[%clk 0:02:55.6]} 7. Bd3 {[%clk 0:02:50]} 7... c5 {[%clk 0:02:56]} 8. c3 {[%clk
0:02:48.6]} 8... cxd4 {[%clk 0:02:52.7]} 9. Nxd4 {[%clk 0:02:46.1]} 9... Bd6
{[%clk 0:02:41.6]} 10. h3 {[%clk 0:02:42.6]} 10... O-O {[%clk 0:02:34.9]} 11.
O-O {[%clk 0:02:41.3]} 11... b6 {[%clk 0:02:23]} 12. Qf3 {[%clk 0:02:38.3]}
12... Rb8 {[%clk 0:01:59.3]} 13. Nc6 {[%clk 0:02:34.5]} 13... Bb7 {[%clk
0:01:59.4]} 14. Nxd8 {[%clk 0:02:18.1]} 14... Bxf3 {[%clk 0:01:57.3]} 15. gxf3
{[%clk 0:02:12.4]} 15... Rbxd8 {[%clk 0:01:47.6]} 16. Be3 {[%clk 0:02:11]} 16...
Bh2+ {[%clk 0:01:36.5]} 17. Kxh2 {[%clk 0:02:08.2]} 17... Rxd3 {[%clk 0:01:37]}
18. Kg2 {[%clk 0:02:05.6]} 18... Rfd8 {[%clk 0:01:35.2]} 19. Rae1 {[%clk
0:01:54.2]} 19... Nh5 {[%clk 0:01:23.7]} 20. f4 {[%clk 0:01:47.9]} 20... Nf6
{[%clk 0:01:17.4]} 21. Kf3 {[%clk 0:01:42.3]} 21... Nd5 {[%clk 0:01:14.5]} 22.
Re2 {[%clk 0:01:38.2]} 22... Ne7 {[%clk 0:01:04.6]} 23. Rc2 {[%clk 0:01:29]}
23... Nf5 {[%clk 0:01:03.2]} 24. Rg1 {[%clk 0:01:20.3]} 24... h5 {[%clk
0:01:01.6]} 25. Ke2 {[%clk 0:01:15.7]} 25... h4 {[%clk 0:00:55.9]} 26. Rg5
{[%clk 0:01:10.3]} 26... Rd1 {[%clk 0:00:46.9]} 27. a4 {[%clk 0:00:56.8]} 27...
Rh1 {[%clk 0:00:44.5]} 28. a5 {[%clk 0:00:53.4]} 28... bxa5 {[%clk 0:00:35.5]}
29. Bxa7 {[%clk 0:00:51.6]} 29... Rdd1 {[%clk 0:00:32.9]} 30. Be3 {[%clk
0:00:43.6]} 30... Rde1+ {[%clk 0:00:27.7]} 31. Kd2 {[%clk 0:00:34.5]} 31... Rd1+
{[%clk 0:00:18.5]} 32. Ke2 {[%clk 0:00:32.2]} 32... Rb1 {[%clk 0:00:17.8]} 33.
c4 {[%clk 0:00:30]} 33... Rxh3 {[%clk 0:00:16.6]} 34. c5 {[%clk 0:00:29.4]}
34... Rhh1 {[%clk 0:00:14.6]} 35. c6 {[%clk 0:00:27]} 35... h3 {[%clk
0:00:11.5]} 36. Rxf5 {[%clk 0:00:24.2]} 36... exf5 {[%clk 0:00:08.8]} 37. c7
{[%clk 0:00:24.3]} 37... Rhe1+ {[%clk 0:00:08.3]} 38. Kd2 {[%clk 0:00:22]} 38...
h2 {[%clk 0:00:07.1]} 39. c8=Q+ {[%clk 0:00:21.6]} 39... Kh7 {[%clk 0:00:07.5]}
40. Qxf5+ {[%clk 0:00:21.6]} 40... Kh6 {[%clk 0:00:05.5]} 41. Qg5+ {[%clk
0:00:19.3]} 41... Kh7 {[%clk 0:00:05.7]} 42. Qh5+ {[%clk 0:00:19.4]} 42... Kg8
{[%clk 0:00:06.1]} 43. Rc8# {[%clk 0:00:20.3]} 1-0

[Event "*** Titled Tuesday Blitz"]
[Site "Chess.com"]
[Date "2020.11.10"]
[Round "9"]
[White "ShapkinAnatoliy"]
[Black "RD4ever"]
[Result "1/2-1/2"]
[WhiteElo "2647"]
[BlackElo "2820"]
[TimeControl "180+1"]
[EndTime "11:52:16 PST"]
[Termination "Game drawn by agreement"]

1. d4 {[%clk 0:03:00.9]} 1... d5 {[%clk 0:02:55.9]} 2. c4 {[%clk 0:03:00.2]}
2... e6 {[%clk 0:02:56.5]} 3. Nf3 {[%clk 0:02:59.9]} 3... Nf6 {[%clk 0:02:55.9]}
4. g3 {[%clk 0:03:00.1]} 4... Be7 {[%clk 0:02:51]} 5. Bg2 {[%clk 0:02:59.7]}
5... O-O {[%clk 0:02:51.5]} 6. O-O {[%clk 0:02:59.6]} 6... c6 {[%clk 0:02:48.6]}
7. Qc2 {[%clk 0:02:59.4]} 7... b6 {[%clk 0:02:48.5]} 8. Nbd2 {[%clk 0:02:59.7]}
8... Bb7 {[%clk 0:02:44.7]} 9. e4 {[%clk 0:02:59.1]} 9... Na6 {[%clk 0:02:45.1]}
10. a3 {[%clk 0:02:58.6]} 10... c5 {[%clk 0:02:38]} 11. exd5 {[%clk 0:02:58.4]}
11... exd5 {[%clk 0:02:37.1]} 12. dxc5 {[%clk 0:02:58.9]} 12... Nxc5 {[%clk
0:02:34.1]} 13. b4 {[%clk 0:02:59.2]} 13... Ne6 {[%clk 0:02:34.1]} 14. Bb2
{[%clk 0:02:59.4]} 14... dxc4 {[%clk 0:02:26.8]} 15. Nxc4 {[%clk 0:02:47.1]}
15... Be4 {[%clk 0:02:25.4]} 16. Qb3 {[%clk 0:02:43.3]} 16... Bd5 {[%clk
0:02:24.4]} 17. Rad1 {[%clk 0:02:11.4]} 17... b5 {[%clk 0:02:04.2]} 18. Bxf6
{[%clk 0:01:15]} 18... Bxf6 {[%clk 0:02:05.1]} 19. Nfe5 {[%clk 0:01:00.4]} 19...
bxc4 {[%clk 0:02:02.6]} 20. Qe3 {[%clk 0:00:58]} 20... Nc7 {[%clk 0:01:55.6]}
21. Bxd5 {[%clk 0:00:43]} 21... Nxd5 {[%clk 0:01:54.7]} 22. Qc5 {[%clk
0:00:43.6]} 22... Rc8 {[%clk 0:00:40.6]} 23. Qxd5 {[%clk 0:00:43.3]} 23... Qxd5
{[%clk 0:00:41.2]} 24. Rxd5 {[%clk 0:00:43.5]} 24... c3 {[%clk 0:00:42.1]} 25.
Nd7 {[%clk 0:00:28]} 25... c2 {[%clk 0:00:38.7]} 26. Nxf6+ {[%clk 0:00:27.9]}
26... gxf6 {[%clk 0:00:39.6]} 27. Rc1 {[%clk 0:00:28.2]} 27... Rc3 {[%clk
0:00:40.1]} 28. Rc5 {[%clk 0:00:17]} 28... Rc8 {[%clk 0:00:36.5]} 29. Rxc8+
{[%clk 0:00:12.7]} 29... Rxc8 {[%clk 0:00:37.4]} 30. Kf1 {[%clk 0:00:13.4]}
30... Rc3 {[%clk 0:00:30.6]} 31. Ke2 {[%clk 0:00:13.8]} 31... Kg7 {[%clk
0:00:28.9]} 32. Kd2 {[%clk 0:00:13.6]} 32... Rxa3 {[%clk 0:00:29.5]} 33. Rxc2
{[%clk 0:00:14.2]} 33... Kg6 {[%clk 0:00:29.8]} 34. Rc7 {[%clk 0:00:13.1]} 34...
h5 {[%clk 0:00:27.4]} 35. h3 {[%clk 0:00:12.9]} 35... a6 {[%clk 0:00:21.4]} 36.
h4 {[%clk 0:00:10.4]} 36... Ra2+ {[%clk 0:00:20.4]} 37. Ke3 {[%clk 0:00:10.1]}
37... Ra3+ {[%clk 0:00:20.9]} 38. Ke2 {[%clk 0:00:10.6]} 38... Ra2+ {[%clk
0:00:21]} 39. Kf3 {[%clk 0:00:10.7]} 39... Ra3+ {[%clk 0:00:21.5]} 40. Ke2
{[%clk 0:00:11.2]} 40... Ra4 {[%clk 0:00:21]} 41. Rb7 {[%clk 0:00:10.3]} 41...
Kf5 {[%clk 0:00:20.4]} 42. b5 {[%clk 0:00:09.7]} 42... axb5 {[%clk 0:00:19.8]}
43. Rxb5+ {[%clk 0:00:10.3]} 43... Kg6 {[%clk 0:00:20.5]} 44. Rd5 {[%clk
0:00:09.8]} 44... Rb4 {[%clk 0:00:19.9]} 1/2-1/2

[Event "*** Titled Tuesday Blitz"]
[Site "Chess.com"]
[Date "2020.11.10"]
[Round "9"]
[White "martynkovaelena"]
[Black "Malysch"]
[Result "0-1"]
[WhiteElo "2263"]
[BlackElo "2418"]
[TimeControl "180+1"]
[EndTime "11:52:18 PST"]
[Termination "Malysch won by resignation"]

1. d4 {[%clk 0:02:57.6]} 1... Nf6 {[%clk 0:02:59.2]} 2. c4 {[%clk 0:02:57.5]}
2... g6 {[%clk 0:02:58.5]} 3. Nf3 {[%clk 0:02:57.5]} 3... Bg7 {[%clk 0:02:57.9]}
4. g3 {[%clk 0:02:58]} 4... O-O {[%clk 0:02:56.8]} 5. Bg2 {[%clk 0:02:58.4]}
5... c6 {[%clk 0:02:56.8]} 6. O-O {[%clk 0:02:58.2]} 6... d5 {[%clk 0:02:55.9]}
7. b3 {[%clk 0:02:58.6]} 7... dxc4 {[%clk 0:02:53.5]} 8. bxc4 {[%clk 0:02:58.2]}
8... c5 {[%clk 0:02:54]} 9. Bb2 {[%clk 0:02:56.8]} 9... Qb6 {[%clk 0:02:53.2]}
10. Qb3 {[%clk 0:02:55.9]} 10... Ne4 {[%clk 0:02:51.9]} 11. Nc3 {[%clk
0:02:42.6]} 11... Nxc3 {[%clk 0:02:21.1]} 12. Bxc3 {[%clk 0:02:41.2]} 12... Nc6
{[%clk 0:02:19]} 13. e3 {[%clk 0:02:36.2]} 13... Bg4 {[%clk 0:01:57.1]} 14. Ne5
{[%clk 0:01:48.9]} 14... cxd4 {[%clk 0:01:42.8]} 15. Nxc6 {[%clk 0:01:37.8]}
15... bxc6 {[%clk 0:01:30.8]} 16. exd4 {[%clk 0:01:31]} 16... Bxd4 {[%clk
0:01:14.3]} 17. Qxb6 {[%clk 0:00:58.9]} 17... Bxb6 {[%clk 0:01:12.1]} 18. Bxc6
{[%clk 0:00:59]} 18... Rac8 {[%clk 0:01:09.4]} 19. Bb5 {[%clk 0:00:58.4]} 19...
Be2 {[%clk 0:01:04.5]} 20. Rfe1 {[%clk 0:00:44.2]} 20... Bxc4 {[%clk 0:01:03.4]}
21. Bxc4 {[%clk 0:00:30.4]} 21... Rxc4 {[%clk 0:01:02.6]} 22. Rac1 {[%clk
0:00:28]} 22... Rfc8 {[%clk 0:00:55.4]} 23. Bb2 {[%clk 0:00:27.7]} 23... Rc2
{[%clk 0:00:48.4]} 24. Rf1 {[%clk 0:00:15.9]} 24... Bxf2+ {[%clk 0:00:41.2]} 25.
Rxf2 {[%clk 0:00:15.8]} 25... Rxc1+ {[%clk 0:00:40.4]} 26. Bxc1 {[%clk
0:00:16.5]} 26... Rxc1+ {[%clk 0:00:40.1]} 27. Kg2 {[%clk 0:00:17.1]} 27... f5
{[%clk 0:00:36.6]} 28. Rb2 {[%clk 0:00:16.2]} 28... Kf7 {[%clk 0:00:35.6]} 29.
Kf3 {[%clk 0:00:16.1]} 29... Rc3+ {[%clk 0:00:34.6]} 30. Kf2 {[%clk 0:00:14.5]}
30... Kf6 {[%clk 0:00:33.8]} 31. h4 {[%clk 0:00:12.8]} 31... h6 {[%clk
0:00:31.1]} 32. Rd2 {[%clk 0:00:12.5]} 32... g5 {[%clk 0:00:30.2]} 33. hxg5+
{[%clk 0:00:12.6]} 33... hxg5 {[%clk 0:00:29.7]} 34. Rb2 {[%clk 0:00:11.5]}
34... f4 {[%clk 0:00:27.6]} 35. gxf4 {[%clk 0:00:10.4]} 35... gxf4 {[%clk
0:00:27.5]} 36. Rb4 {[%clk 0:00:10.4]} 36... e5 {[%clk 0:00:27.2]} 37. a4 {[%clk
0:00:08.1]} 37... Kf5 {[%clk 0:00:26.6]} 38. Rb7 {[%clk 0:00:07.8]} 38... Rc2+
{[%clk 0:00:23.8]} 39. Kf1 {[%clk 0:00:08]} 39... Ke4 {[%clk 0:00:21.9]} 40.
Rxa7 {[%clk 0:00:07]} 40... Kf3 {[%clk 0:00:21.6]} 41. Ke1 {[%clk 0:00:06.3]}
41... e4 {[%clk 0:00:21.8]} 42. a5 {[%clk 0:00:05.2]} 42... e3 {[%clk
0:00:21.8]} 43. Kd1 {[%clk 0:00:05.2]} 43... Ra2 {[%clk 0:00:19.6]} 0-1

[Event "*** Titled Tuesday Blitz"]
[Site "Chess.com"]
[Date "2020.11.10"]
[Round "9"]
[White "m_ezat"]
[Black "Sacbutt"]
[Result "1-0"]
[WhiteElo "2463"]
[BlackElo "2290"]
[TimeControl "180+1"]
[EndTime "11:52:26 PST"]
[Termination "m_ezat won on time"]

1. e4 {[%clk 0:02:27.8]} 1... d5 {[%clk 0:02:56.8]} 2. exd5 {[%clk 0:02:24.1]}
2... Qxd5 {[%clk 0:02:57.7]} 3. d4 {[%clk 0:02:24.3]} 3... c6 {[%clk 0:02:57.1]}
4. Nc3 {[%clk 0:02:23.9]} 4... Qd6 {[%clk 0:02:57]} 5. Nf3 {[%clk 0:02:23.7]}
5... Nf6 {[%clk 0:02:57.4]} 6. Bc4 {[%clk 0:02:23.3]} 6... Bg4 {[%clk
0:02:56.3]} 7. h3 {[%clk 0:02:17.8]} 7... Bxf3 {[%clk 0:02:55.7]} 8. Qxf3 {[%clk
0:02:18]} 8... e6 {[%clk 0:02:56.5]} 9. O-O {[%clk 0:02:16.7]} 9... Nbd7 {[%clk
0:02:55.1]} 10. Rd1 {[%clk 0:02:13.8]} 10... Qc7 {[%clk 0:02:52.8]} 11. Bg5
{[%clk 0:02:06.1]} 11... Bd6 {[%clk 0:02:47.6]} 12. Bb3 {[%clk 0:01:34.4]} 12...
O-O {[%clk 0:02:41.9]} 13. Ne4 {[%clk 0:01:32.5]} 13... Nxe4 {[%clk 0:02:24]}
14. Qxe4 {[%clk 0:01:32.5]} 14... h6 {[%clk 0:02:21.9]} 15. Bh4 {[%clk 0:01:31]}
15... Bh2+ {[%clk 0:02:22]} 16. Kh1 {[%clk 0:01:30.5]} 16... Qf4 {[%clk
0:02:18.6]} 17. Qxf4 {[%clk 0:01:25.2]} 17... Bxf4 {[%clk 0:02:19.5]} 18. c4
{[%clk 0:01:20.8]} 18... g5 {[%clk 0:02:15.5]} 19. Bg3 {[%clk 0:01:21.2]} 19...
Bxg3 {[%clk 0:02:16]} 20. fxg3 {[%clk 0:01:21.8]} 20... Nf6 {[%clk 0:02:10.8]}
21. Bc2 {[%clk 0:01:21.8]} 21... Rad8 {[%clk 0:02:04.9]} 22. Rd2 {[%clk
0:01:21.4]} 22... Rd7 {[%clk 0:02:02.9]} 23. Rad1 {[%clk 0:01:21.8]} 23... Rfd8
{[%clk 0:02:03]} 24. Rd3 {[%clk 0:01:16.6]} 24... Kg7 {[%clk 0:01:55.3]} 25. Kg1
{[%clk 0:01:16.4]} 25... a6 {[%clk 0:01:45.3]} 26. Kf2 {[%clk 0:01:14.6]} 26...
Ne4+ {[%clk 0:01:43.6]} 27. Kf3 {[%clk 0:01:12]} 27... Nd6 {[%clk 0:01:42.7]}
28. b3 {[%clk 0:01:08.7]} 28... Nf5 {[%clk 0:01:28.9]} 29. Ke4 {[%clk
0:01:02.6]} 29... b6 {[%clk 0:01:05.9]} 30. d5 {[%clk 0:00:59.9]} 30... cxd5+
{[%clk 0:00:59.7]} 31. cxd5 {[%clk 0:00:59.6]} 31... Nd6+ {[%clk 0:00:32.6]} 32.
Ke5 {[%clk 0:00:59]} 32... exd5 {[%clk 0:00:13.3]} 33. Rxd5 {[%clk 0:00:50.8]}
33... Re7+ {[%clk 0:00:05.8]} 34. Kd4 {[%clk 0:00:51.1]} 34... Red7 {[%clk
0:00:05.5]} 35. Ke3 {[%clk 0:00:46.1]} 35... Re7+ {[%clk 0:00:04.8]} 36. Kf3
{[%clk 0:00:44.2]} 36... Red7 {[%clk 0:00:04.6]} 37. Bf5 {[%clk 0:00:42]} 37...
Nxf5 {[%clk 0:00:04.4]} 38. Rxd7 {[%clk 0:00:42.1]} 38... Rc8 {[%clk 0:00:02.6]}
39. R7d3 {[%clk 0:00:40.3]} 39... Rc2 {[%clk 0:00:02]} 40. R1d2 {[%clk
0:00:40.3]} 40... Rc1 {[%clk 0:00:02.5]} 41. Kf2 {[%clk 0:00:39.5]} 41... Ne7
{[%clk 0:00:02.5]} 42. g4 {[%clk 0:00:38]} 42... Ng6 {[%clk 0:00:02.2]} 43. g3
{[%clk 0:00:36.7]} 43... Ne5 {[%clk 0:00:02.2]} 44. Re3 {[%clk 0:00:37.3]} 44...
Ng6 {[%clk 0:00:02.3]} 45. Rd7 {[%clk 0:00:33.8]} 45... Rc2+ {[%clk 0:00:02.5]}
46. Re2 {[%clk 0:00:34.2]} 46... Rc6 {[%clk 0:00:02.7]} 47. Re8 {[%clk
0:00:29.6]} 47... a5 {[%clk 0:00:02.8]} 48. Rb8 {[%clk 0:00:25.8]} 48... Rc2+
{[%clk 0:00:02.9]} 49. Ke3 {[%clk 0:00:25.6]} 49... Rxa2 {[%clk 0:00:03]} 50.
Rbb7 {[%clk 0:00:26.2]} 1-0

[Event "*** Titled Tuesday Blitz"]
[Site "Chess.com"]
[Date "2020.11.10"]
[Round "9"]
[White "vrekhson"]
[Black "lucachess49"]
[Result "0-1"]
[WhiteElo "2208"]
[BlackElo "2361"]
[TimeControl "180+1"]
[EndTime "11:52:26 PST"]
[Termination "lucachess49 won by resignation"]

1. e4 {[%clk 0:03:00.9]} 1... e5 {[%clk 0:02:59.3]} 2. Nf3 {[%clk 0:02:56.4]}
2... Nc6 {[%clk 0:02:55.2]} 3. Bb5 {[%clk 0:02:43.6]} 3... a6 {[%clk 0:02:54.4]}
4. Ba4 {[%clk 0:02:42.3]} 4... Nf6 {[%clk 0:02:53.9]} 5. d3 {[%clk 0:02:32.7]}
5... d6 {[%clk 0:02:45.2]} 6. c3 {[%clk 0:02:30]} 6... Be7 {[%clk 0:02:37.4]} 7.
Nbd2 {[%clk 0:02:29.1]} 7... O-O {[%clk 0:02:37.9]} 8. Nf1 {[%clk 0:02:28.9]}
8... b5 {[%clk 0:02:32.8]} 9. Bc2 {[%clk 0:02:28.9]} 9... d5 {[%clk 0:02:27.4]}
10. Ng3 {[%clk 0:02:27.3]} 10... dxe4 {[%clk 0:02:18.8]} 11. dxe4 {[%clk
0:02:28.2]} 11... Qxd1+ {[%clk 0:02:19.3]} 12. Bxd1 {[%clk 0:02:25]} 12... Bb7
{[%clk 0:02:18.3]} 13. O-O {[%clk 0:02:25.1]} 13... Na5 {[%clk 0:02:17.4]} 14.
Bc2 {[%clk 0:01:57.2]} 14... Bd6 {[%clk 0:02:12.1]} 15. Bg5 {[%clk 0:01:54.6]}
15... Nd7 {[%clk 0:01:53.3]} 16. Rad1 {[%clk 0:01:44.6]} 16... f6 {[%clk
0:01:51.2]} 17. Be3 {[%clk 0:01:44.1]} 17... Nc4 {[%clk 0:01:50.4]} 18. Bc1
{[%clk 0:01:43.4]} 18... Nc5 {[%clk 0:01:46.9]} 19. b3 {[%clk 0:01:41.2]} 19...
Nb6 {[%clk 0:01:46.2]} 20. Nf5 {[%clk 0:01:35.1]} 20... Rad8 {[%clk 0:01:44.6]}
21. Be3 {[%clk 0:01:32.2]} 21... Bxe4 {[%clk 0:01:24.8]} 22. Bxe4 {[%clk
0:01:21.6]} 22... Nxe4 {[%clk 0:01:25.7]} 23. Nxd6 {[%clk 0:01:00.6]} 23... Nxd6
{[%clk 0:01:03.8]} 24. Bc5 {[%clk 0:00:49.6]} 24... Rf7 {[%clk 0:00:54.2]} 25.
Rd2 {[%clk 0:00:44.2]} 25... Rfd7 {[%clk 0:00:47.4]} 26. Bxb6 {[%clk 0:00:33]}
26... cxb6 {[%clk 0:00:42]} 27. Rfd1 {[%clk 0:00:33.6]} 27... Kf7 {[%clk
0:00:41.4]} 28. Ne1 {[%clk 0:00:20.2]} 28... Ke7 {[%clk 0:00:35.5]} 29. Nc2
{[%clk 0:00:19.9]} 29... Ne4 {[%clk 0:00:24]} 30. Rxd7+ {[%clk 0:00:20.8]} 30...
Rxd7 {[%clk 0:00:24.6]} 31. Rxd7+ {[%clk 0:00:19.3]} 31... Kxd7 {[%clk
0:00:25.5]} 32. c4 {[%clk 0:00:13.8]} 32... bxc4 {[%clk 0:00:24.3]} 33. bxc4
{[%clk 0:00:14.7]} 33... Nc3 {[%clk 0:00:22.7]} 34. a3 {[%clk 0:00:10.7]} 34...
Nb1 {[%clk 0:00:16.3]} 35. a4 {[%clk 0:00:10.9]} 35... Nc3 {[%clk 0:00:15]} 36.
Nb4 {[%clk 0:00:10.1]} 36... a5 {[%clk 0:00:14.1]} 37. Nd3 {[%clk 0:00:10]}
37... Nxa4 {[%clk 0:00:14.1]} 38. f4 {[%clk 0:00:10.5]} 38... e4 {[%clk
0:00:13.2]} 39. Nf2 {[%clk 0:00:09.8]} 39... Nc5 {[%clk 0:00:13.4]} 40. g4
{[%clk 0:00:09.4]} 40... a4 {[%clk 0:00:13.6]} 41. Nd1 {[%clk 0:00:09]} 41... a3
{[%clk 0:00:14]} 42. Nc3 {[%clk 0:00:09.6]} 42... Na4 {[%clk 0:00:13.6]} 43. Na2
{[%clk 0:00:09.1]} 43... Kc6 {[%clk 0:00:13.6]} 44. Kf2 {[%clk 0:00:08.9]} 44...
Kc5 {[%clk 0:00:13.9]} 45. Ke3 {[%clk 0:00:08.1]} 45... Kxc4 {[%clk 0:00:14.3]}
46. Kxe4 {[%clk 0:00:08.6]} 46... Nc3+ {[%clk 0:00:14.7]} 47. Nxc3 {[%clk
0:00:07.6]} 47... Kxc3 {[%clk 0:00:15.6]} 48. Kf5 {[%clk 0:00:08.2]} 48... a2
{[%clk 0:00:16.1]} 49. g5 {[%clk 0:00:08.8]} 49... a1=Q {[%clk 0:00:16.8]} 50.
gxf6 {[%clk 0:00:09.2]} 50... gxf6 {[%clk 0:00:17.3]} 0-1